Cogmind - Beta 9.1 @@@ ROGUE MODE // 2019.11.04 @ 07:08:15 Player: ModulinMyGlobulin Result: Destroyed by S-10 Pest with Light Assault Rifle Performance ------------- Evolutions (2) 1000 Regions Visited (3) 600 Robots Destroyed (18) 90 Value Destroyed (486) 486 Prototype IDs (0) 0 Alien Tech Used (0) 0 Bonus (0) 0 TOTAL SCORE: 2176 Bonus ------- None Cogmind --------- Core Integrity 0/550 Matter 280/300 Energy 29/150 System Corruption 0% Temperature Cool (7) Location -8/Materials Parts ------- Power (1) Micro Nuclear Core Propulsion (4) Utility (3) Weapon (3) EM Pulse Cannon Inventory (4) Improved Titanium Leg Large Storage Unit Large Storage Unit Peak State ------------ Power Ion Engine Propulsion Improved Titanium Leg Improved Titanium Leg Improved Titanium Leg Improved Titanium Leg Utility Large Storage Unit Large Storage Unit Propulsion Shielding Weapon Medium Laser Medium Laser Heavy Assault Rifle Inventory Ion Engine Aluminum Leg Aluminum Leg Aluminum Leg Aluminum Leg Heat Sink Medium Armor Plating Medium Laser Beam Cannon Beam Cannon Beam Cannon Light Assault Rifle [Rating: 25] Favorites ----------- Power Ion Engine Engine Ion Engine Power Core Micro Nuclear Core Propulsion Aluminum Leg Leg Aluminum Leg Utility Propulsion Shielding Storage Small Storage Unit Protection Propulsion Shielding Weapon EM Pulse Gun Energy Gun EM Pulse Gun Energy Cannon Beam Cannon Ballistic Gun Light Assault Rifle Special Melee Weapon Datajack Build | -11 -10 -9 -8 ------- Run | Scr Mat Mat Mat Slots Evolved 4 | . . 2 2 Power . | . . . . Propulsion 2 | . . 2 . Utility 1 | . . . 1 Weapon 1 | . . . 1 Parts Attached 32 | . 3 7 22 Power 4 | . 1 . 3 Engine 2 | . 1 . 1 Core 2 | . . . 2 Reactor . | . . . . Propulsion 12 | . 1 2 9 Treads . | . . . . Leg 12 | . 1 2 9 Wheel . | . . . . Hover . | . . . . Flight . | . . . . Utility 5 | . 1 2 2 Device . | . . . . Storage 2 | . . 2 . Processor . | . . . . Hackware . | . . . . Protection 3 | . 1 . 2 Artifact . | . . . . Weapon 11 | . . 3 8 Energy Gun 4 | . . 2 2 Energy Cannon 4 | . . . 4 Ballistic Gun 2 | . . 1 1 Ballistic Cannon . | . . . . Launcher . | . . . . Special Weapon . | . . . . Impact Weapon . | . . . . Slashing Weapon . | . . . . Piercing Weapon . | . . . . Special Melee Weapon 1 | . . . 1 Unidentified Prototypes . | . . . . Parts Lost 20 | . . . 20 Power 3 | . . . 3 Propulsion 6 | . . . 6 Utility 2 | . . . 2 Weapon 9 | . . . 9 Highest Loss Streak 20 | . . . 20 Average Slot Usage (%) 94 | . 96 100 77 Engine 11 | . 14 11 7 Leg 36 | . 28 44 28 Storage 14 | . 14 13 15 Protection 8 | . 10 8 5 Energy Gun 13 | . 14 14 10 Ballistic Gun 8 | . 14 7 5 Naked Turns 5 | . . . 5 Heaviest Build 50 | 10 13 42 50 Greatest Support 70 | 20 20 40 70 Greatest Overweight (x) 4 | . . 1 4 Average Overweight (x) . | . . . . Largest Inventory Capacity 16 | 6 6 16 16 Average Capacity 8 | 6 6 8 14 Most Carried 14 | 6 6 10 14 Average Carried 6 | 6 5 6 9 Final Capacity 16 | 6 6 16 4 Final Carried 10 | 6 6 10 3 Class Distribution -------------------- 89% | Mutant 10% | Tank Dominant Class ---------------- Mutant | -10/Materials Mutant | -9/Materials Tank | -8/Materials Resources | -11 -10 -9 -8 ----------- Run | Scr Mat Mat Mat Matter Collected 433 | 193 30 78 132 Remotely . | . . . . Salvage Created 705 | 78 162 267 198 Parts 42 | 3 13 14 12 Haulers Intercepted . | . . . . Recyclers Shooed . | . . . . Parts Field Recycled . | . . . . Retrieved Matter . | . . . . Parts Self-Destructed . | . . . . Prevented . | . . . . Kills | -11 -10 -9 -8 ------- Run | Scr Mat Mat Mat Combat Hostiles Destroyed 14 | . 6 4 4 Guns 11 | . 6 4 1 Cannons 3 | . . . 3 Classes Destroyed 9 | 1 2 4 2 Builder 1 | . . 1 . Recycler 1 | 1 . . . Operator 1 | . . . 1 Watcher 1 | . . 1 . Swarmer 4 | . 3 . 1 Grunt 6 | . 3 1 2 Brawler 1 | . . 1 . Duelist 1 | . . . 1 Sentry 2 | . . 2 . Best Kill Streak 3 | 1 3 2 2 Combat Bots Only 3 | . 3 2 2 Max Kills in Single Turn 1 | 1 1 1 1 Gunslinging . | . . . . Exploded . | . . . . Melee . | . . . . Uniques/NPCs Destroyed . | . . . . Combat | -11 -10 -9 -8 -------- Run | Scr Mat Mat Mat Damage Taken 2721 | . 131 100 2490 Core 611 | . 37 16 558 Absorbed by Shields . | . . . . Core Remaining (%) 93 | 100 85 96 . Volleys Fired 48 | 1 12 15 20 Largest 3 | 2 2 2 3 Hottest 170 | 60 60 80 170 Shots Fired 96 | 2 24 30 40 Gun 79 | 2 24 30 23 Cannon 17 | . . . 17 Launcher . | . . . . Special . | . . . . Kinetic 27 | 1 12 4 10 Thermal 43 | . . 15 28 Explosive . | . . . . Electromagnetic 26 | 1 12 11 2 Robot Hit Streak 10 | 1 6 9 10 Robot Miss Streak 6 | 1 6 2 3 Penetration Max . | . . . . Secondary Targets . | . . . . Shots Hit Robots 62 | 1 14 22 25 Core Hits 30 | 2 9 10 9 Critical Hits 1 | . . . 1 Critical Kills . | . . . . Critical Parts Destroyed 1 | . . . 1 Melee Attacks . | . . . . Impact . | . . . . Slashing . | . . . . Piercing . | . . . . Sneak Attacks . | . . . . Combat Hostiles . | . . . . Follow-up Attacks . | . . . . Damage Inflicted 891 | 23 171 233 464 Guns 628 | 23 171 233 201 Cannons 215 | . . . 215 Explosions . | . . . . Melee . | . . . . Ramming 48 | . . . 48 Kinetic 197 | 8 62 13 114 Thermal 405 | . . 126 279 Explosive . | . . . . Electromagnetic 241 | 15 109 94 23 Impact . | . . . . Slashing . | . . . . Piercing . | . . . . Highest Corruption . | . . . . Average Corruption . | . . . . Corruption Purged . | . . . . Overload Shots . | . . . . Overflow Damage 3 | . . . 3 Projectiles 3 | . . . 3 Explosions . | . . . . Melee . | . . . . Knockbacks . | . . . . Impact . | . . . . Kinetic . | . . . . Secondary . | . . . . Self-Inflicted Damage 4 | . . . 4 Shots . | . . . . Rammed 1 | . . . 1 Targets Rammed 9 | . . . 9 Kicked 8 | . . . 8 Crushed . | . . . . Highest Temperature 450 | 20 70 63 450 Average Temperature 119 | 15 33 20 209 Received Heat Transfer 579 | . 30 36 513 Effects 2 | . . . 2 Energy Bleed 1 | . . . 1 Damage (minor) 1 | . . . 1 Siege Activations . | . . . . Robots Corrupted . | . . . . Combat Hostiles . | . . . . Parts Fried 1 | . . 1 . Impact Corruptions . | . . . . Robots Melted . | . . . . Combat Hostiles . | . . . . Parts Melted 3 | . . 1 2 Heat Transferred 965 | . . 299 666 Parts Sabotaged . | . . . . Parts Stolen . | . . . . Parts Stripped . | . . . . Power Chain Reactions . | . . . . Missiles Intercepted . | . . . . Alert | -11 -10 -9 -8 ------- Run | Scr Mat Mat Mat Peak Influence 244 | 5 148 244 63 Average Influence 104 | 3 60 161 31 Maximum Alert Level 1 | . . 1 . Low Security (%) 76 | . . . . Level 1 23 | . . . . Level 2 . | . . . . Level 3 . | . . . . Level 4 . | . . . . Level 5 . | . . . . High Security . | . . . . Max Security . | . . . . Squads Dispatched 4 | . 1 . 3 Investigation 1 | . 1 . . Extermination . | . . . . Reinforcement 3 | . . . 3 Assault . | . . . . Garrison . | . . . . Intercept . | . . . . Construction Impeded . | . . . . Haulers Reinforced . | . . . . Stealth | -11 -10 -9 -8 --------- Run | Scr Mat Mat Mat Distress Signals 1 | . . . 1 Communications Jammed . | . . . . Distress Signals . | . . . . Times Spotted 24 | . 6 7 11 Peak Tracking Total 6 | . 3 3 6 Tactical Retreats 1 | . . . 1 Traps | -11 -10 -9 -8 ------- Run | Scr Mat Mat Mat Traps Triggered 1 | . 1 . . Indirectly . | . . . . Trap Hack Attempts . | . . . . Triggered . | . . . . Disarmed . | . . . . Reprogrammed . | . . . . Reused . | . . . . Traps Extracted . | . . . . Installed . | . . . . Triggered . | . . . . Machines | -11 -10 -9 -8 ---------- Run | Scr Mat Mat Mat Machines Disabled . | . . . . Max in Single Turn . | . . . . Machines Sabotaged . | . . . . Garrisons Compromised . | . . . . Overloaded Fab Kills . | . . . . Fab Network Shutdowns . | . . . . Hacking | -11 -10 -9 -8 --------- Run | Scr Mat Mat Mat Machines Accessed 1 | . 1 . . Terminals 1 | . 1 . . Fabricators . | . . . . Repair Stations . | . . . . Recycling Units . | . . . . Scanalyzers . | . . . . Garrison Access . | . . . . Total Hacks 1 | . 1 . . Successful 1 | . 1 . . Failed . | . . . . Catastrophic . | . . . . Database Lockouts . | . . . . Manual 2 | . 2 . . Terminals 1 | . 1 . . Fabricators . | . . . . Repair Stations . | . . . . Recycling Units . | . . . . Scanalyzers . | . . . . Garrison Access . | . . . . Terminal Hacks . | . . . . Fabricator Hacks . | . . . . Repair Station Hacks . | . . . . Recycling Unit Hacks . | . . . . Scanalyzer . | . . . . Garrison Access Hacks . | . . . . Unauthorized Hacks 2 | . 2 . . Terminals 1 | . 1 . . Botnet 1 | . 1 . . Fabricators . | . . . . Repair Stations . | . . . . Recycling Units . | . . . . Scanalyzers . | . . . . Garrison Access . | . . . . Data Cores Recovered . | . . . . Used . | . . . . Hacking Detections 1 | . 1 . . Full Trace Events . | . . . . Feedback Events . | . . . . Feedback Blocked . | . . . . Robot Schematics Acquired . | . . . . Robots Built . | . . . . Matter . | . . . . Time . | . . . . Total Robot Build Rating . | . . . . Part Schematics Acquired . | . . . . Parts Built . | . . . . Matter . | . . . . Time . | . . . . Total Part Build Rating . | . . . . Parts Repaired . | . . . . Time . | . . . . Parts Recycled . | . . . . Recycled Matter . | . . . . Retrieved Matter . | . . . . Retrieved Components . | . . . . Parts Scanalyzed . | . . . . Part Schematics Acquired . | . . . . Parts Damaged . | . . . . Bothacking | -11 -10 -9 -8 ------------ Run | Scr Mat Mat Mat Used RIF Installer . | . . . . Robots Hacked . | . . . . Non-combat . | . . . . Combat . | . . . . Robot Hacks Applied . | . . . . Relay Couplers Released . | . . . . Robots Rewired . | . . . . Allies Hacked . | . . . . Hacks Repelled . | . . . . Allies | -11 -10 -9 -8 -------- Run | Scr Mat Mat Mat Total Allies . | . . . . Largest Group . | . . . . Highest-Rated Group . | . . . . Highest-Rated Ally . | . . . . Total Orders . | . . . . Ally Attacks . | . . . . Total Damage . | . . . . Kills . | . . . . Allies Corrupted . | . . . . Allies Melted . | . . . . Intel | -11 -10 -9 -8 ------- Run | Scr Mat Mat Mat Robot Analysis Total . | . . . . Derelict Logs Recovered . | . . . . Drone Launches . | . . . . Drone Recoveries . | . . . . Exploration | -11 -10 -9 -8 ------------- Run | Scr Mat Mat Mat Turns Passed 828 | 10 237 419 162 Spaces Moved 446 | 7 152 247 40 Core 18 | . . . 18 Treads . | . . . . Legs 428 | 7 152 247 22 Wheels . | . . . . Hover . | . . . . Flight . | . . . . Fastest Speed 50 | 120 120 120 50 Average Speed 123 | 120 120 127 118 Slowest Speed 240 | 120 120 150 240 Overloaded Moves . | . . . . Propulsion Burnouts . | . . . . Robots Hopped . | . . . . Cave-ins Triggered . | . . . . Exploration Rate (%) 17 | 3 34 25 6 Regions Visited 3 Branch Regions . Pre-discovered Areas . | . . . . Known Exits Taken . | . . . . Unknown Exits Taken 3 | 1 1 1 . Scrap Searched . | . . . . Spaces Dug . | . . . . Terrain Destroyed . | . . . . Melee . | . . . . Projectile . | . . . . AOE . | . . . . Actions | -11 -10 -9 -8 --------- Run | Scr Mat Mat Mat Total 633 | 7 187 323 116 Wait 67 | . 11 37 19 Move 443 | 6 151 246 40 Hop . | . . . . Pick Up 17 | . 4 11 2 Fast Attach 10 | . 2 4 4 Attach 15 | . . 2 13 Detach 2 | . . . 2 Swap 7 | . 1 1 5 Drop 15 | . 6 7 2 Fire 48 | 1 12 15 20 Melee . | . . . . Ram . | . . . . Kick 9 | . . . 9 Crush . | . . . . Escape Stasis . | . . . . Rewire . | . . . . Trap . | . . . . Miscellaneous . | . . . . Route ------- -11/Scrapyard -10/Materials -9/Materials -8/Materials History --------- Turn | Location | Event 1 | -11/Scrapyard | Discovered new exit (range 3) 11 | -11/Scrapyard | Entered Materials 190 | -10/Materials | Discovered new exit (range 16) 248 | -10/Materials | Entered another Materials area 248 | -9/Materials | Evolved 2 slots: Propulsion x2 308 | -9/Materials | Build established: Mutant 560 | -9/Materials | Discovered new exit (range 13) 667 | -9/Materials | Entered another Materials area 667 | -8/Materials | Evolved 2 slots: Utility x1, Weapon x1 804 | -8/Materials | Core integrity fell below 50% 814 | -8/Materials | Core integrity fell below 20% 829 | -8/Materials | Destroyed by S-10 Pest with Light Assault Rifle Last Messages --------------- 00794_ Imp. Titanium Leg destroyed. 00795_ Beam Cannon destroyed. 00795_ Penetrated by Slug. 00795_ Aluminum Leg destroyed. 00799_ Acquired 10 matter. 00801_ Aluminum Leg destroyed. 00801_ Ion Engine destroyed. 00803_ Y-45 Defender heat damages Hvy. Assault Rifle. 00803_ Acquired Datajack. 00804_ Datajack destroyed. 00804_ Penetrated by Slug. 00806_ Dropped Heat Sink. 00806_ Dropped Aluminum Leg. 00807_ Penetrated by Slug. 00808_ Acquired 15 matter. 00813_ Penetrated by Slug. 00817_ Mic. Nuclear Core destroyed. 00822_ Acquired EM Pulse Cannon. 00828_ Destroyed Flight Unit. 00828_ Slug penetrates Wall. Map ----- +----------------------------------------------------+ | ?????????????????????????????????????????????? | | ?????????????????????????????????????????????? | | ?????????????????????????????????????????????? | | ?????????????????????????????????????????????? | | ?????????????????????????????????????????????? | | ?????????????????????????????????????????????? | | ?????????????????????????????????????????????? | | ?????????????????????????????????????????????? | | ?????????????????????????????????????????????? | | ?????????????????????????????????????????????? | | ?????????????????????????????????????????????? | | ????????????????? ???????????????????????????? | | ????????????????? ???????????????????????????? | | ????????????????# ???????????????????????????? | | ????????????????# ???????????????????????????? | | ????????????????# #??????????????????????????? | | ????????????????# #??????????????????????????? | | ????????????????# #??????????????????????????? | | ????????????????# #?#####+#####??????????????? | | ????????????????# #?# #??????????????? | | ??????????????### ### = #??????????????? | | ??????????????# # #??????????????? | | ??????????????# # #??????????????? | | ??????????????# Ys t #??????????????? | | ??????????????# # #??????????????? | | ??????????????# # @ t#??????????????? | | ??????????????## ## +??????????????? | | ???????????????# ############??????????????? | | ???????????????# #?????????????????????????? | | ???????????????# #?????????????????????????? | | ???????????????# #?????????????????????????? | | ???????????????# #?????????????????????????? | | ????? ####### ############??????????????? | | ???? = #??????????????? | | ???? *%= #??????????????? | | ???? =%!= #??????????????? | | ???? ###"T"######!=! ####??????????????? | | ?????#+????####?????#%* = #?????????????????? | | ????????????????????#!!*%=*#?????????????????? | | ????????????????????#!! ! *#?????????????????? | | ????????????????????########?????????????????? | | ?????????????????????????????????????????????? | | ?????????????????????????????????????????????? | | ?????????????????????????????????????????????? | | ?????????????????????????????????????????????? | | ?????????????????????????????????????????????? | | ?????????????????????????????????????????????? | | ?????????????????????????????????????????????? | | | | | +----------------------------------------------------+ Best States ------------- Heat Dissipation 31 Energy Generation 15 Energy Capacity 250 Matter Stores 300 Matter Capacity 300 Sight Range 16 Terrain Scan Density 10 Armor Coverage 225 Propulsion Shielding 33 Evasion (%) 50 Item Schematics ----------------- None Robot Schematics ------------------ None Fabricated ------------ Nothing Alien Tech Used ----------------- None Achievements -------------- None Challenges ------------ None Game ------ Seed MeleePropulsionChronowheel Manual? 0 Play Time 00:16:11 Cumulative 53.6 hours Start 2019.11.04 @ 06:44:10 End 2019.11.04 @ 07:08:15 Sessions 1 Manual Loads 0 Difficulty Rogue Special Mode None Game No. 135 Rogue 135 Adventurer 0 Explorer 0 Win Type - Total 0 Types 0/0/0/0/0/0/0 Lore% 36 Gallery% 41 Achievement% 22 Wizard Run 0 Options --------- ASCII 0 Keyboard 0 Movement Numpad Keybinds 0 Fullscreen 1 Font 18/SmallcapsGlow Map View 76x50 Tactical HUD 1 Map Filters NONE Filters NONE Steam X RUN: 03f50ae0-1b9e-41bf-bcc8-9f2219d40129